[Event "Tournoi norme de MI"]
[Site "PARIS"]
[Date "????.??.??"]
[Round "6.4"]
[White "Bassini, Emile"]
[Black "Vlachos, Anatole"]
[Result "0-1"]
[TimeControl "90mn+30s/c"]
[WhiteElo "2382"]
[BlackElo "2430"]

1. e4 {[%clk 01:30:56]} {[%emt 00:00:03]} e6 {[%clk 01:30:54]} {[%emt
00:00:07]} 2. d4 {[%clk 01:31:22]} {[%emt 00:00:04]} d5 {[%clk 01:31:22]}
{[%emt 00:00:03]} 3. Nc3 {[%clk 01:31:48]} {[%emt 00:00:04]} Nf6 {[%clk
01:31:48]} {[%emt 00:00:03]} 4. e5 {[%clk 01:32:14]} {[%emt 00:00:03]} Nfd7
{[%clk 01:32:15]} {[%emt 00:00:04]} 5. f4 {[%clk 01:32:40]} {[%emt 00:00:06]}
c5 {[%clk 01:32:43]} 6. Nf3 {[%clk 01:33:05]} {[%emt 00:00:04]} Nc6 {[%clk
01:33:09]} {[%emt 00:00:04]} 7. Be3 {[%clk 01:33:30]} {[%emt 00:00:05]} Be7
{[%clk 01:33:33]} {[%emt 00:00:06]} 8. Qd2 {[%clk 01:33:56]} {[%emt 00:00:04]}
a6 {[%clk 01:33:59]} {[%emt 00:00:04]} 9. Bd3 {[%clk 01:32:57]} {[%emt
00:01:29]} b5 {[%clk 01:34:01]} {[%emt 00:00:28]} 10. dxc5 {[%clk 01:28:35]}
{[%emt 00:04:52]} Nxc5 {[%clk 01:33:06]} {[%emt 00:01:25]} 11. Nd4 {[%clk
01:27:25]} {[%emt 00:01:40]} Nxd4 {[%clk 01:29:46]} {[%emt 00:03:50]} 12. Bxd4
{[%clk 01:24:47]} {[%emt 00:03:08]} b4 {[%clk 01:30:12]} {[%emt 00:00:05]} 13.
Ne2 {[%clk 01:25:06]} {[%emt 00:00:10]} a5 {[%clk 01:28:27]} {[%emt 00:02:16]}
14. Qe3 {[%clk 01:22:28]} {[%emt 00:03:08]} Nxd3+ {[%clk 01:25:36]} {[%emt
00:03:21]} 15. cxd3 {[%clk 01:22:51]} {[%emt 00:00:06]} Ba6 {[%clk 01:22:52]}
{[%emt 00:03:14]} 16. Kd2 {[%clk 01:13:36]} {[%emt 00:09:45]} O-O {[%clk
01:16:22]} {[%emt 00:07:00]} 17. Rhc1 {[%clk 01:13:06]} {[%emt 00:00:58]} Qe8
{[%clk 00:35:37]} {[%emt 00:41:17]} 18. Bc5 {[%clk 01:07:28]} {[%emt 00:06:08]}
d4 {[%clk 00:36:02]} {[%emt 00:00:05]} 19. Nxd4 {[%clk 01:05:19]} {[%emt
00:02:39]} Rd8 {[%clk 00:34:42]} {[%emt 00:01:51]} 20. Bxe7 {[%clk 00:58:05]}
{[%emt 00:07:43]} Qxe7 {[%clk 00:35:10]} {[%emt 00:00:02]} 21. Nc6 {[%clk
00:49:12]} {[%emt 00:09:23]} Qb7 {[%clk 00:35:01]} {[%emt 00:00:40]} 22. Qc5
{[%clk 00:40:08]} {[%emt 00:09:34]} Rxd3+ {[%clk 00:34:41]} {[%emt 00:00:50]}
23. Ke1 {[%clk 00:40:26]} {[%emt 00:00:12]} Bb5 {[%clk 00:34:54]} {[%emt
00:00:18]} 24. Rc2 {[%clk 00:38:13]} {[%emt 00:02:42]} g5 {[%clk 00:33:27]}
{[%emt 00:01:57]} 25. Rd1 {[%clk 00:22:41]} {[%emt 00:16:02]} Rfd8 {[%clk
00:23:38]} {[%emt 00:10:20]} 26. Rxd3 {[%clk 00:18:54]} {[%emt 00:04:15]} Rxd3
{[%clk 00:24:06]} {[%emt 00:00:03]} 27. fxg5 {[%clk 00:17:04]} {[%emt
00:02:20]} Kg7 {[%clk 00:22:10]} {[%emt 00:02:26]} 28. a4 {[%clk 00:13:28]}
{[%emt 00:04:07]} Bxa4 {[%clk 00:20:53]} {[%emt 00:01:47]} 29. b3 {[%clk
00:13:07]} {[%emt 00:00:51]} Rd5 {[%clk 00:20:33]} {[%emt 00:00:49]} 30. Qf2
{[%clk 00:12:43]} {[%emt 00:00:54]} Bxc6 {[%clk 00:20:34]} {[%emt 00:00:30]} 31.
Qf6+ {[%clk 00:13:05]} {[%emt 00:00:07]} Kg8 {[%clk 00:20:02]} {[%emt
00:01:02]} 32. g6 {[%clk 00:12:02]} {[%emt 00:01:34]} hxg6 {[%clk 00:20:30]}
{[%emt 00:00:02]} 33. Rc4 {[%clk 00:12:26]} {[%emt 00:00:05]} Qd7 {[%clk
00:20:49]} {[%emt 00:00:11]} 0-1

[Event "Tournoi norme de MI"]
[Site "PARIS"]
[Date "????.??.??"]
[Round "6.5"]
[White "Willems, Niels"]
[Black "Bonte, Andrei-Mihai"]
[Result "1/2-1/2"]
[TimeControl "90mn+30s/c"]
[WhiteElo "2337"]
[BlackElo "2340"]

1. c4 {[%clk 01:30:57]} {[%emt 00:00:03]} Nf6 {[%clk 01:30:31]} {[%emt
00:00:29]} 2. Nc3 {[%clk 01:31:17]} {[%emt 00:00:10]} c5 {[%clk 01:30:16]}
{[%emt 00:00:45]} 3. g3 {[%clk 01:31:10]} {[%emt 00:00:38]} g6 {[%clk
01:28:33]} {[%emt 00:02:13]} 4. Bg2 {[%clk 01:31:33]} {[%emt 00:00:06]} Bg7
{[%clk 01:28:59]} {[%emt 00:00:05]} 5. e4 {[%clk 01:31:08]} {[%emt 00:00:55]}
Nc6 {[%clk 01:28:51]} {[%emt 00:00:38]} 6. Nge2 {[%clk 01:31:24]} {[%emt
00:00:14]} d6 {[%clk 01:28:00]} {[%emt 00:01:21]} 7. d3 {[%clk 01:31:36]}
{[%emt 00:00:17]} Bg4 {[%clk 01:27:23]} {[%emt 00:01:07]} 8. h3 {[%clk
01:30:37]} {[%emt 00:01:29]} Bxe2 {[%clk 01:27:36]} {[%emt 00:00:18]} 9. Nxe2
{[%clk 01:30:47]} {[%emt 00:00:20]} Nd7 {[%clk 01:25:54]} {[%emt 00:02:12]} 10.
O-O {[%clk 01:27:33]} {[%emt 00:03:43]} Rb8 {[%clk 01:25:32]} {[%emt 00:00:53]}
11. Rb1 {[%clk 01:27:01]} {[%emt 00:01:03]} O-O {[%clk 01:25:01]} {[%emt
00:01:01]} 12. Be3 {[%clk 01:26:25]} {[%emt 00:01:05]} b5 {[%clk 01:24:05]}
{[%emt 00:01:26]} 13. cxb5 {[%clk 01:07:22]} {[%emt 00:19:34]} Rxb5 {[%clk
01:22:54]} {[%emt 00:01:42]} 1/2-1/2

[Event "Tournoi norme de MI"]
[Site "PARIS"]
[Date "????.??.??"]
[Round "6.1"]
[White "Duboue, Peio"]
[Black "Roshka, Yevgeniy"]
[Result "1/2-1/2"]
[TimeControl "90mn+30s/c"]
[WhiteElo "2462"]
[BlackElo "2501"]

1. e4 {[%clk 01:29:31]} {[%emt 00:00:16]} g6 {[%clk 01:30:54]} {[%emt
00:00:06]} 2. d4 {[%clk 01:29:53]} {[%emt 00:00:08]} Bg7 {[%clk 01:31:20]}
{[%emt 00:00:05]} 3. Nc3 {[%clk 01:30:18]} {[%emt 00:00:05]} d6 {[%clk
01:31:45]} {[%emt 00:00:05]} 4. Be3 {[%clk 01:29:58]} {[%emt 00:00:50]} a6
{[%clk 01:32:11]} {[%emt 00:00:05]} 5. Qd2 {[%clk 01:30:06]} {[%emt 00:00:22]}
b5 {[%clk 01:32:36]} {[%emt 00:00:05]} 6. h4 {[%clk 01:30:11]} {[%emt
00:00:25]} h5 {[%clk 01:33:01]} {[%emt 00:00:04]} 7. Nh3 {[%clk 01:29:24]}
{[%emt 00:01:17]} Bxh3 {[%clk 01:33:20]} {[%emt 00:00:11]} 8. Rxh3 {[%clk
01:29:42]} {[%emt 00:00:12]} c6 {[%clk 01:33:34]} {[%emt 00:00:16]} 9. a4
{[%clk 01:25:43]} {[%emt 00:04:28]} Nd7 {[%clk 01:32:05]} {[%emt 00:01:59]} 10.
d5 {[%clk 01:17:38]} {[%emt 00:08:35]} b4 {[%clk 01:30:54]} {[%emt 00:01:42]}
11. dxc6 {[%clk 01:17:31]} {[%emt 00:00:37]} bxc3 {[%clk 01:31:18]} {[%emt
00:00:06]} 12. cxd7+ {[%clk 01:17:57]} {[%emt 00:00:04]} Qxd7 {[%clk 01:31:45]}
{[%emt 00:00:04]} 13. Qd5 {[%clk 01:16:14]} {[%emt 00:02:13]} Rc8 {[%clk
01:25:12]} {[%emt 00:07:02]} 14. Bxa6 {[%clk 01:05:33]} {[%emt 00:11:11]} cxb2
{[%clk 01:23:48]} {[%emt 00:01:55]} 15. Rb1 {[%clk 01:05:42]} {[%emt 00:00:21]}
Nf6 {[%clk 01:24:00]} {[%emt 00:00:17]} 16. Bxc8 {[%clk 01:02:36]} {[%emt
00:03:36]} Qxc8 {[%clk 01:24:24]} {[%emt 00:00:06]} 17. Qd3 {[%clk 00:58:44]}
{[%emt 00:04:21]} O-O {[%clk 01:21:53]} {[%emt 00:03:02]} 18. Bd4 {[%clk
00:54:24]} {[%emt 00:04:50]} Qc6 {[%clk 01:20:20]} {[%emt 00:02:03]} 19. Rxb2
{[%clk 00:45:51]} {[%emt 00:09:03]} e5 {[%clk 01:19:38]} {[%emt 00:01:13]} 20.
Bc3 {[%clk 00:39:40]} {[%emt 00:06:40]} Nxe4 {[%clk 01:19:33]} {[%emt
00:00:35]} 21. Kf1 {[%clk 00:31:53]} {[%emt 00:08:18]} Nxc3 {[%clk 01:05:54]}
{[%emt 00:14:09]} 22. Qxc3 {[%clk 00:32:19]} {[%emt 00:00:04]} Qxa4 {[%clk
01:06:18]} {[%emt 00:00:06]} 23. Qb4 {[%clk 00:30:56]} {[%emt 00:01:53]} Qa6+
{[%clk 01:06:02]} {[%emt 00:00:46]} 24. Qb5 {[%clk 00:30:06]} {[%emt 00:01:19]}
Qa8 {[%clk 01:05:13]} {[%emt 00:01:20]} 25. Rb1 {[%clk 00:28:05]} {[%emt
00:02:31]} e4 {[%clk 01:05:01]} {[%emt 00:00:42]} 26. Rd1 {[%clk 00:26:54]}
{[%emt 00:01:41]} Rc8 {[%clk 01:04:46]} {[%emt 00:00:45]} 27. Qd5 {[%clk
00:24:56]} {[%emt 00:02:28]} Qxd5 {[%clk 00:56:00]} {[%emt 00:09:16]} 28. Rxd5
{[%clk 00:25:25]} {[%emt 00:00:01]} Be5 {[%clk 00:56:01]} {[%emt 00:00:29]} 29.
Rd2 {[%clk 00:25:53]} {[%emt 00:00:01]} f5 {[%clk 00:56:09]} {[%emt 00:00:22]}
30. Ra3 {[%clk 00:26:22]} {[%emt 00:00:02]} Kf7 {[%clk 00:56:17]} {[%emt
00:00:21]} 31. Ra2 {[%clk 00:21:57]} {[%emt 00:04:55]} Ke6 {[%clk 00:54:36]}
{[%emt 00:02:11]} 32. Rd1 {[%clk 00:22:26]} {[%emt 00:00:02]} Rc4 {[%clk
00:53:03]} {[%emt 00:02:03]} 33. Rb1 {[%clk 00:21:46]} {[%emt 00:01:09]} Bf6
{[%clk 00:51:35]} {[%emt 00:01:59]} 34. g3 {[%clk 00:21:52]} {[%emt 00:00:24]}
Bd4 {[%clk 00:51:46]} {[%emt 00:00:19]} 35. Ke2 {[%clk 00:21:05]} {[%emt
00:01:17]} Rc3 {[%clk 00:51:55]} {[%emt 00:00:21]} 36. Rb3 {[%clk 00:20:28]}
{[%emt 00:01:08]} Rc4 {[%clk 00:52:17]} {[%emt 00:00:08]} 37. Rba3 {[%clk
00:19:50]} {[%emt 00:01:08]} Bc5 {[%clk 00:52:39]} {[%emt 00:00:07]} 38. Rb3
{[%clk 00:19:37]} {[%emt 00:00:43]} Bd4 {[%clk 00:53:03]} {[%emt 00:00:06]} 39.
Rba3 {[%clk 00:19:45]} {[%emt 00:00:22]} Bc5 {[%clk 00:53:23]} {[%emt
00:00:10]} 40. Rb3 {[%clk 00:20:14]} {[%emt 00:00:01]} 1/2-1/2

[Event "Tournoi norme de MI"]
[Site "PARIS"]
[Date "????.??.??"]
[Round "6.2"]
[White "Navrotescu, Andreea"]
[Black "Mouhamad, Joachim"]
[Result "1-0"]
[TimeControl "90mn+30s/c"]
[WhiteElo "2228"]
[BlackElo "2301"]

1. d4 {[%clk 01:30:56]} {[%emt 00:00:02]} d5 {[%clk 01:30:49]} {[%emt
00:00:12]} 2. c4 {[%clk 01:31:22]} {[%emt 00:00:04]} e6 {[%clk 01:31:09]}
{[%emt 00:00:10]} 3. Nc3 {[%clk 01:31:47]} {[%emt 00:00:07]} a6 {[%clk
01:31:11]} {[%emt 00:00:27]} 4. cxd5 {[%clk 01:32:09]} {[%emt 00:00:08]} exd5
{[%clk 01:31:33]} {[%emt 00:00:07]} 5. Qb3 {[%clk 01:32:35]} {[%emt 00:00:04]}
Nf6 {[%clk 01:28:38]} {[%emt 00:03:24]} 6. Bg5 {[%clk 01:32:55]} {[%emt
00:00:10]} Bd6 {[%clk 01:18:35]} {[%emt 00:10:34]} 7. Nxd5 {[%clk 01:19:43]}
{[%emt 00:13:43]} Be6 {[%clk 01:18:09]} {[%emt 00:00:54]} 8. Bxf6 {[%clk
01:20:00]} {[%emt 00:00:14]} gxf6 {[%clk 01:18:08]} {[%emt 00:00:29]} 9. Qe3
{[%clk 01:19:01]} {[%emt 00:01:30]} Nc6 {[%clk 00:58:00]} {[%emt 00:20:39]} 10.
Nc3 {[%clk 01:07:13]} {[%emt 00:12:19]} Nb4 {[%clk 00:56:04]} {[%emt 00:02:26]}
11. O-O-O {[%clk 01:07:27]} {[%emt 00:00:15]} c6 {[%clk 00:53:07]} {[%emt
00:03:27]} 12. a3 {[%clk 00:58:55]} {[%emt 00:09:02]} Nd5 {[%clk 00:53:17]}
{[%emt 00:00:21]} 13. Nxd5 {[%clk 00:58:40]} {[%emt 00:00:46]} cxd5 {[%clk
00:53:44]} {[%emt 00:00:02]} 14. Kb1 {[%clk 00:49:30]} {[%emt 00:09:40]} b5
{[%clk 00:54:08]} {[%emt 00:00:06]} 15. g3 {[%clk 00:41:24]} {[%emt 00:08:35]}
O-O {[%clk 00:48:47]} {[%emt 00:05:51]} 16. Bh3 {[%clk 00:33:31]} {[%emt
00:08:23]} Qd7 {[%clk 00:48:43]} {[%emt 00:00:34]} 17. Bxe6 {[%clk 00:33:51]}
{[%emt 00:00:11]} fxe6 {[%clk 00:49:06]} {[%emt 00:00:06]} 18. Nh3 {[%clk
00:32:14]} {[%emt 00:02:07]} b4 {[%clk 00:48:39]} {[%emt 00:00:58]} 19. axb4
{[%clk 00:32:32]} {[%emt 00:00:11]} Rab8 {[%clk 00:47:48]} {[%emt 00:01:21]} 20.
Nf4 {[%clk 00:30:06]} {[%emt 00:02:56]} Rxb4 {[%clk 00:38:32]} {[%emt
00:09:47]} 21. Rd2 {[%clk 00:29:41]} {[%emt 00:00:54]} Re8 {[%clk 00:36:09]}
{[%emt 00:02:54]} 22. Rc1 {[%clk 00:26:00]} {[%emt 00:04:11]} a5 {[%clk
00:36:34]} {[%emt 00:00:05]} 23. Nh5 {[%clk 00:24:21]} {[%emt 00:02:09]} Rf8
{[%clk 00:32:56]} {[%emt 00:04:08]} 24. Qh6 {[%clk 00:24:09]} {[%emt 00:00:42]}
Qe7 {[%clk 00:17:39]} {[%emt 00:15:47]} 25. Rc6 {[%clk 00:24:24]} {[%emt
00:00:16]} Rb7 {[%clk 00:17:57]} {[%emt 00:00:12]} 26. Rdc2 {[%clk 00:23:06]}
{[%emt 00:01:48]} Rd7 {[%clk 00:17:34]} {[%emt 00:00:53]} 27. Rc8 {[%clk
00:22:52]} {[%emt 00:00:44]} Kh8 {[%clk 00:14:45]} {[%emt 00:03:19]} 28. Nxf6
{[%clk 00:20:22]} {[%emt 00:03:00]} Rdd8 {[%clk 00:15:07]} {[%emt 00:00:08]} 29.
Rxd8 {[%clk 00:20:21]} {[%emt 00:00:32]} Rxd8 {[%clk 00:15:36]} {[%emt
00:00:02]} 30. Nxh7 {[%clk 00:19:54]} {[%emt 00:00:56]} Qg7 {[%clk 00:13:43]}
{[%emt 00:02:23]} 31. Qxg7+ {[%clk 00:20:16]} {[%emt 00:00:09]} Kxg7 {[%clk
00:14:12]} {[%emt 00:00:02]} 32. Ng5 {[%clk 00:20:39]} {[%emt 00:00:07]} Kf6
{[%clk 00:14:19]} {[%emt 00:00:23]} 33. h4 {[%clk 00:21:07]} {[%emt 00:00:01]}
a4 {[%clk 00:13:27]} {[%emt 00:01:22]} 34. Rc6 {[%clk 00:21:15]} {[%emt
00:00:22]} Ke7 {[%clk 00:13:49]} {[%emt 00:00:08]} 35. Ra6 {[%clk 00:21:26]}
{[%emt 00:00:19]} 1-0



[ePGN "0.1;DGT LiveChess/2.2.5"]

[Event "Tournoi norme de MI"]
[Site "PARIS"]
[Date "????.??.??"]
[Round "7.2"]
[White "Mouhamad, Joachim"]
[Black "Bassini, Emile"]
[Result "1-0"]
[TimeControl "90mn+30s/c"]
[WhiteElo "2301"]
[BlackElo "2382"]

1. e4 {[%clk 01:30:54]} {[%emt 00:00:04]} c5 {[%clk 01:30:53]} {[%emt
00:00:07]} 2. Nf3 {[%clk 01:31:18]} {[%emt 00:00:07]} d6 {[%clk 01:31:19]}
{[%emt 00:00:05]} 3. c3 {[%clk 01:31:42]} {[%emt 00:00:07]} Nf6 {[%clk
01:31:42]} {[%emt 00:00:07]} 4. Bd3 {[%clk 01:32:04]} {[%emt 00:00:07]} g5
{[%clk 01:29:36]} {[%emt 00:02:36]} 5. Bc2 {[%clk 01:29:21]} {[%emt 00:03:13]}
g4 {[%clk 01:28:24]} {[%emt 00:01:43]} 6. Ng1 {[%clk 01:28:33]} {[%emt
00:01:18]} d5 {[%clk 01:10:21]} {[%emt 00:18:33]} 7. d3 {[%clk 01:20:38]}
{[%emt 00:08:25]} Nc6 {[%clk 01:07:47]} {[%emt 00:03:04]} 8. Bg5 {[%clk
01:17:10]} {[%emt 00:03:58]} Bg7 {[%clk 01:04:36]} {[%emt 00:03:42]} 9. Nd2
{[%clk 01:17:19]} {[%emt 00:00:20]} c4 {[%clk 00:46:32]} {[%emt 00:18:35]} 10.
dxc4 {[%clk 01:09:49]} {[%emt 00:08:00]} d4 {[%clk 00:46:55]} {[%emt 00:00:07]}
11. cxd4 {[%clk 01:10:06]} {[%emt 00:00:12]} Qxd4 {[%clk 00:44:16]} {[%emt
00:03:09]} 12. Rb1 {[%clk 01:09:33]} {[%emt 00:01:03]} O-O {[%clk 00:32:31]}
{[%emt 00:12:15]} 13. Ne2 {[%clk 01:09:23]} {[%emt 00:00:39]} Qe5 {[%clk
00:32:47]} {[%emt 00:00:15]} 14. Bf4 {[%clk 01:03:23]} {[%emt 00:06:30]} Qa5
{[%clk 00:31:51]} {[%emt 00:01:26]} 15. a3 {[%clk 00:58:02]} {[%emt 00:05:52]}
Rd8 {[%clk 00:25:16]} {[%emt 00:07:05]} 16. b4 {[%clk 00:57:09]} {[%emt
00:01:23]} Qh5 {[%clk 00:01:14]} {[%emt 00:24:32]} 17. Rb3 {[%clk 00:36:11]}
{[%emt 00:21:28]} e5 {[%clk 00:00:40]} {[%emt 00:03:33]} 18. Be3 {[%clk
00:35:31]} {[%emt 00:01:09]} Bh6 {[%clk 00:00:50]} {[%emt 00:00:20]} 19. O-O
{[%clk 00:27:08]} {[%emt 00:08:53]} Be6 {[%clk 00:00:47]} {[%emt 00:00:33]} 20.
b5 {[%clk 00:20:48]} {[%emt 00:06:50]} Na5 {[%clk 00:00:45]} {[%emt 00:00:32]}
21. Ng3 {[%clk 00:18:34]} {[%emt 00:02:44]} Qg6 {[%clk 00:00:54]} {[%emt
00:00:21]} 22. Nf5 {[%clk 00:16:57]} {[%emt 00:02:07]} Bxf5 {[%clk 00:01:14]}
{[%emt 00:00:10]} 23. exf5 {[%clk 00:17:21]} {[%emt 00:00:05]} Qh5 {[%emt
00:02:25]} 24. Rd3 {[%clk 00:15:42]} Bxe3 {[%clk 00:01:52]} {[%emt 00:00:06]}
25. fxe3 {[%clk 00:15:46]} {[%emt 00:00:26]} Qg5 {[%clk 00:01:57]} {[%emt
00:00:25]} 26. Qe2 {[%clk 00:12:02]} {[%emt 00:04:14]} b6 {[%clk 00:01:56]}
{[%emt 00:00:31]} 27. Rxd8+ {[%clk 00:10:05]} {[%emt 00:02:26]} Rxd8 {[%clk
00:02:25]} {[%emt 00:00:01]} 28. Ne4 {[%clk 00:09:43]} {[%emt 00:00:52]} Nxe4
{[%clk 00:02:49]} {[%emt 00:00:06]} 29. Bxe4 {[%clk 00:10:11]} {[%emt
00:00:02]} Nb3 {[%clk 00:03:03]} {[%emt 00:00:16]} 30. Bd5 {[%clk 00:10:22]}
{[%emt 00:00:19]} Nc5 {[%clk 00:03:28]} {[%emt 00:00:06]} 31. Qf2 {[%clk
00:07:05]} {[%emt 00:04:00]} Kg7 {[%clk 00:01:21]} {[%emt 00:02:37]} 32. Qg3
{[%clk 00:05:11]} {[%emt 00:02:24]} Kf6 {[%clk 00:01:50]} {[%emt 00:00:01]} 33.
a4 {[%clk 00:05:15]} {[%emt 00:00:27]} h5 {[%clk 00:01:27]} {[%emt 00:00:52]}
34. h4 {[%clk 00:05:12]} {[%emt 00:00:33]} gxh3 {[%clk 00:01:28]} {[%emt
00:00:29]} 35. Qxg5+ {[%clk 00:05:23]} {[%emt 00:00:19]} Kxg5 {[%clk 00:01:56]}
{[%emt 00:00:02]} 36. gxh3 {[%clk 00:03:38]} {[%emt 00:02:15]} Kf6 {[%clk
00:01:53]} {[%emt 00:00:33]} 37. Ra1 {[%clk 00:03:02]} {[%emt 00:01:06]} Rg8+
{[%clk 00:01:51]} {[%emt 00:00:32]} 38. Kf2 {[%clk 00:02:44]} {[%emt 00:00:48]}
h4 {[%clk 00:01:37]} {[%emt 00:00:44]} 39. a5 {[%clk 00:02:31]} {[%emt
00:00:43]} Kxf5 {[%clk 00:01:11]} {[%emt 00:00:57]} 40. axb6 {[%clk 00:02:37]}
{[%emt 00:00:24]} axb6 {[%clk 00:01:38]} {[%emt 00:00:01]} 41. Bxf7 {[%clk
00:01:16]} {[%emt 00:01:52]} Ne4+ {[%clk 00:01:32]} {[%emt 00:00:36]} 42. Kf1
{[%clk 00:01:14]} {[%emt 00:00:33]} Rg3 {[%emt 00:00:53]} 43. Ra6 {[%clk
00:01:02]} Rxh3 {[%clk 00:01:58]} {[%emt 00:00:23]} 44. Rxb6 {[%clk 00:01:24]}
{[%emt 00:00:08]} Rf3+ {[%clk 00:01:31]} {[%emt 00:00:56]} 45. Ke2 {[%clk
00:01:52]} {[%emt 00:00:02]} Rf2+ {[%clk 00:01:33]} {[%emt 00:00:29]} 46. Ke1
{[%clk 00:02:21]} {[%emt 00:00:02]} Rg2 {[%clk 00:01:58]} {[%emt 00:00:05]} 47.
Rh6 {[%clk 00:01:54]} {[%emt 00:00:56]} Ng5 {[%clk 00:01:14]} {[%emt 00:01:14]}
48. Bd5 {[%clk 00:00:52]} {[%emt 00:01:32]} e4 {[%clk 00:01:43]} {[%emt
00:00:01]} 49. b6 {[%clk 00:01:03]} {[%emt 00:00:19]} Rb2 {[%clk 00:00:57]}
{[%emt 00:01:15]} 50. b7 {[%clk 00:01:20]} {[%emt 00:00:13]} h3 {[%clk
00:01:01]} {[%emt 00:00:26]} 51. Kd1 {[%clk 00:01:28]} {[%emt 00:00:22]} Ke5
{[%clk 00:00:47]} {[%emt 00:00:44]} 52. Kc1 {[%clk 00:01:29]} {[%emt 00:00:29]}
Rb4 {[%clk 00:00:59]} {[%emt 00:00:18]} 53. Rh8 {[%clk 00:01:12]} {[%emt
00:00:47]} h2 {[%clk 00:00:38]} {[%emt 00:00:52]} 54. Rxh2 {[%clk 00:01:34]}
{[%emt 00:00:08]} Nf7 {[%clk 00:00:48]} {[%emt 00:00:20]} 55. Rb2 {[%clk
00:01:49]} {[%emt 00:00:15]} 1-0

[Event "Tournoi norme de MI"]
[Site "PARIS"]
[Date "????.??.??"]
[Round "7.5"]
[White "Vlachos, Anatole"]
[Black "Willems, Niels"]
[Result "1/2-1/2"]
[TimeControl "90mn+30s/c"]
[WhiteElo "2430"]
[BlackElo "2337"]

1. d4 {[%clk 01:16:23]} {[%emt 00:14:35]} Nf6 {[%clk 01:30:48]} {[%emt
00:00:12]} 2. Nc3 {[%clk 01:16:48]} {[%emt 00:00:05]} d5 {[%clk 01:31:11]}
{[%emt 00:00:07]} 3. Bf4 {[%clk 01:17:13]} {[%emt 00:00:05]} c5 {[%clk
01:31:30]} {[%emt 00:00:11]} 4. e4 {[%clk 01:17:39]} {[%emt 00:00:05]} Nxe4
{[%clk 01:31:54]} {[%emt 00:00:05]} 5. Nxe4 {[%clk 01:18:06]} {[%emt 00:00:04]}
dxe4 {[%clk 01:32:14]} {[%emt 00:00:10]} 6. dxc5 {[%clk 01:18:33]} {[%emt
00:00:03]} Qxd1+ {[%clk 01:32:25]} {[%emt 00:00:18]} 7. Rxd1 {[%clk 01:19:00]}
{[%emt 00:00:03]} Nc6 {[%clk 01:32:47]} {[%emt 00:00:09]} 8. Bb5 {[%clk
01:15:22]} {[%emt 00:04:08]} Bd7 {[%clk 01:33:07]} {[%emt 00:00:09]} 9. b4
{[%clk 01:13:09]} {[%emt 00:02:43]} g6 {[%clk 01:30:43]} {[%emt 00:02:54]} 10.
Ne2 {[%clk 01:10:30]} {[%emt 00:03:10]} Bg7 {[%clk 01:30:33]} {[%emt 00:00:40]}
11. O-O {[%clk 01:08:46]} {[%emt 00:02:15]} O-O-O {[%clk 01:29:42]} {[%emt
00:01:20]} 12. a3 {[%clk 01:07:10]} {[%emt 00:02:06]} f5 {[%clk 01:05:03]}
{[%emt 00:25:08]} 13. Rfe1 {[%clk 00:47:20]} {[%emt 00:20:20]} Be6 {[%clk
00:54:23]} {[%emt 00:11:10]} 14. Bd2 {[%clk 00:37:12]} {[%emt 00:10:39]} a6
{[%clk 00:44:22]} {[%emt 00:10:31]} 15. Bxc6 {[%clk 00:36:11]} {[%emt
00:01:32]} bxc6 {[%clk 00:44:50]} {[%emt 00:00:02]} 16. Bc3 {[%clk 00:36:35]}
{[%emt 00:00:05]} Bc4 {[%clk 00:43:40]} {[%emt 00:01:40]} 17. Bxg7 {[%clk
00:36:35]} {[%emt 00:00:30]} Rxd1 {[%clk 00:43:55]} {[%emt 00:00:15]} 18. Rxd1
{[%clk 00:37:01]} {[%emt 00:00:05]} Bxe2 {[%clk 00:44:18]} {[%emt 00:00:07]} 19.
Rd2 {[%clk 00:34:19]} {[%emt 00:03:12]} 1/2-1/2